Workbook

Sheet 1 неделя
A1: 1 неделя | B1: Основные компоненты | C1: Брутто
D2: Цена за кг | E2: Сумма
A3: Понедельник
A4: салат из свежей капусты | B4: капуста | C4: 99.6 | D4: 25 | E4: =C4*D4/1000 -> 2.49
B5: лук | C5: 12.5 | D5: 30 | E5: 0.38
B6: морковь | C6: 12.5 | D6: 35 | E6: 0.44
B7: сахар | C7: 5 | D7: 80 | E7: 0.40
B8: масло растительное | C8: 5 | D8: 140 | E8: 0.70
A9: Биточки из говядины | B9: Говядина (котлетное мясо) | C9: 72 | D9: 500 | E9: 36.00
B10: Сухари | C10: 1 | D10: 100 | E10: 0.10
B11: Хлеб ржанойй | C11: 7 | D11: 78 | E11: 0.55
B12: Масло сливочное | C12: 5 | D12: 900 | E12: 4.50
B13: Соль | C13: 0.6 | D13: 16 | E13: 0.01
B14: Масса п/ф | E14: 0.00
B15: Масло растительное | C15: 3 | D15: 140 | E15: 0.42
A16: Каша гречневая | B16: Крупа гречневая | C16: 50 | D16: 100 | E16: 5.00
B17: Масло сливочное | C17: 5 | D17: 900 | E17: 4.50
B18: Соль | C18: 0.5 | D18: 16 | E18: 0.01
A19: Чай с сахаром | B19: Чай | C19: 1 | D19: 688 | E19: 0.69
B20: Сахар | C20: 15 | D20: 80 | E20: 1.20
A21: хлеб | B21: Хлеб рж пшен | C21: 20 | D21: 76 | E21: 1.02
A22: хлеб | B22: хлеб пшеничный | C22: 30 | D22: 78 | E22: =C22*D22/1000 -> 2.34
B23: Итого | E23: =SUM(E4:E22) -> 60.73
A24: Вторник
A25: Фрукты | B25: Яблоки | C25: 100 | D25: 100 | E25: =D25/1000*C25 -> 10.00
A26: Рагу из птицы | B26: курица | C26: 100 | D26: 270 | E26: 27.00
B27: картофель | C27: 63.7 | D27: 25 | E27: 1.59
B28: соль | C28: 2 | D28: 16 | E28: 0.03
B29: морковь | C29: 28.4 | D29: 35 | E29: 0.99
B30: лук | C30: 14.3 | D30: 30 | E30: 0.43
B31: капуста | C31: 69.8 | D31: 25 | E31: 1.75
B32: масло растительное | C32: 4 | D32: 140 | E32: 0.56
B33: томат паста | C33: 2 | D33: 175 | E33: 0.35
A34: Кофейный напиток с молоком | B34: Кофейный напиток | C34: 5 | D34: 500 | E34: 2.50
B35: Сахар | C35: 20 | D35: 80 | E35: 1.60
B36: Молоко | C36: 100 | D36: 83 | E36: 8.30
A37: хлеб пшеничный | B37: хлеб | C37: 30 | D37: 78 | E37: 2.34
A38: хлеб рж пшен | B38: хлеб | C38: 20 | D38: 76 | E38: 1.52
B39: Итого | E39: =SUM(E25:E38) -> 58.96
A40: Среда
A41: Гуляш из говядины | B41: Говядина | C41: 87 | D41: 500 | E41: =C41*D41/1000 -> 43.50
B42: Масло растительное | C42: 5 | D42: 140 | E42: 0.70
B43: Лук репчатый | C43: 18 | D43: 30 | E43: 0.54
B44: Томат паста | C44: 3.2 | D44: 175 | E44: 0.56
B45: Соль | C45: 1 | D45: 16 | E45: 0.02
B46: Мука | C46: 4 | D46: 40 | E46: 0.16
A47: Макароны отварные | B47: макароны | C47: 51 | D47: 60 | E47: 3.06
B48: Соль | C48: 3 | D48: 16 | E48: 0.05
B49: Масло слив | C49: 5 | D49: 900 | E49: 4.50
A50: Чай с сахаром | B50: Чай | C50: 1 | D50: 688 | E50: 6.88
B51: Сахар | C51: 15 | D51: 80 | E51: =C51*D51/1000 -> 1.20
A52: хлеб пшеничный | B52: хлеб | C52: 30 | D52: 78 | E52: =D52/1000*C52 -> 2.34
A53: хлеб рж пшен | B53: хлеб | C53: 20 | D53: 76 | E53: =D53/1000*C53 -> 1.52
B54: Итого | E54: =SUM(E41:E53) -> 65.024
A55: Четверг
A56: Салат из моркови | B56: Морковь | C56: 65 | D56: 35 | E56: =C56*D56/1000 -> 2.28
B57: Масло растительное | C57: 6 | D57: 140 | E57: 0.84
B58: Сахарный песок | C58: 6 | D58: 80 | E58: 0.48
A59: Котлеты Рыбные | B59: Котлеты рыбные п/ф из судака(трески) | C59: 100 | D59: 325 | E59: 32.50
A60: Картофельное пюре | B60: Картофель | C60: 170 | D60: 25 | E60: 4.25
B61: Молоко 2,5 | C61: 24 | D61: 83 | E61: 1.99
B62: Масло слив | C62: 5.2 | D62: 900 | E62: 4.68
B63: Соль | C63: 1 | D63: 16 | E63: 0.02
A64: Чай с сахаром | B64: Заварка | C64: 1 | D64: 688 | E64: 0.69
B65: Сахар | C65: 15 | D65: 80 | E65: 1.20
A66: хлеб пшеничный | B66: хлеб | C66: 30 | D66: 78 | E66: =D66/1000*C66 -> 2.34
A67: хлеб рж пшен | B67: хлеб | C67: 20 | D67: 76 | E67: =D67/1000*C67 -> 1.52
B68: Итого | E68: =SUM(E56:E67) -> 52.78
A69: Пятница
A70: Фрукты | B70: Яблоки | C70: 100 | D70: 100.00 | E70: =C70*D70/1000 -> 10.00
A71: Котлеты рубленные из птицы | B71: Котлета куриная | C71: 90 | D71: 360.00 | E71: 32.40
B72: Сухари | C72: 8 | D72: 100 | E72: 0.80
B73: Масло сливоч | C73: 2 | D73: 900 | E73: 1.80
B74: Масло растительное | C74: 5 | D74: 140 | E74: 0.70
A75: Рис отварной | B75: рис | C75: 55 | D75: 90 | E75: 4.95
B76: масло сливочное | C76: 7 | D76: 900 | E76: 6.30
B77: Соль | C77: 1 | D77: 16 | E77: 0.02
A78: Чай с лимоном | B78: заварка | C78: 1 | D78: 688 | E78: 0.69
B79: лимон | C79: 8 | D79: 170 | E79: 1.36
B80: Сахар | C80: 15 | D80: 80 | E80: 1.20
A81: хлеб пшеничный | B81: хлеб | C81: 30 | D81: 78 | E81: =D81/1000*C81 -> 2.34
A82: хлеб рж пшен | B82: хлеб | C82: 20 | D82: 76 | E82: =D82/1000*C82 -> 1.52
B83: Итого | E83: =SUM(E70:E82) -> 64.07
A84: Суббота
A85: Фрукты | B85: Апельсин | C85: 100 | D85: 150.0 | E85: =D85*C85/1000 -> 15
A86: Мясо тушеное | B86: Говядина | C86: 83 | D86: 500.0 | E86: 41.5
B87: Морковь | C87: 5 | D87: 35.0 | E87: 0.175
B88: Лук | C88: 5 | D88: 30.0 | E88: 0.15
B89: Масло рас | C89: 5 | D89: 140.0 | E89: 0.7
B90: Томатная паста | C90: 7 | D90: 175.0 | E90: 1.225
B91: Мука пшенич | C91: 2 | D91: 40.0 | E91: 0.08
B92: соль | C92: 1 | D92: 16.0 | E92: 0.016
A93: Макароны отварные | B93: Макаронные изделия | C93: 53 | D93: 60.0 | E93: 3.18
B94: Масло сливочное | C94: 5 | D94: 900.0 | E94: 4.5
B95: соль | C95: 1 | D95: 16.0 | E95: 0.016
A96: Чай с сахаром | B96: Заварка | C96: 1 | D96: 688 | E96: 0.688
B97: Сахар | C97: 15 | D97: 80 | E97: 1.2
A98: хлеб пшеничный | B98: хлеб | C98: 30 | D98: 78 | E98: =D98/1000*C98 -> 2.34
A99: хлеб рж пшен | B99: хлеб | C99: 20 | D99: 76 | E99: =D99/1000*C99 -> 1.52
B100: Итого | E100: =SUM(E85:E99) -> 72.3

Sheet 2 неделя
A1: 2 неделя | B1: Основные компоненты | C1: Брутто
D2: Цена за кг | E2: Сумма
A3: Понедельник
A4: Сосиски говяжие | B4: Сосиски гов | C4: 102 | D4: 380 | E4: =C4*D4/1000 -> 38.76
B5: Гречка | C5: 54 | D5: 100 | E5: 5.40
A6: Каша гречневая | B6: Слив масло | C6: 5 | D6: 900 | E6: 4.50
B7: соль | C7: 1 | D7: 16 | E7: 0.02
A8: Какао с молоком | B8: Какао | C8: 4 | D8: 271 | E8: 1.08
B9: Сахар | C9: 15 | D9: 80 | E9: 1.20
B10: Молоко | C10: 100 | D10: 83 | E10: 8.30
A11: хлеб пшеничный | B11: хлеб | C11: 30 | D11: 78 | E11: =D11/1000*C11 -> 2.34
A12: хлеб рж пшен | B12: хлеб | C12: 20 | D12: 76 | E12: =D12/1000*C12 -> 1.52
B13: Итого | E13: =SUM(E4:E12) -> 63.12
A14: Вторник
A15: Плов из птицы | B15: Курица | C15: 90 | D15: 270 | E15: =C15*D15/1000 -> 24.30
B16: масло рас | C16: 7 | D16: 140 | E16: =C16*D16/1000 -> 0.98
B17: лук | C17: 10 | D17: 30 | E17: =C17*D17/1000 -> 0.30
B18: морковь | C18: 15 | D18: 35 | E18: 0.53
B19: Томат паста | C19: 5 | D19: 175 | E19: =C19*D19/1000 -> 0.88
B20: рис | C20: 35 | D20: 90 | E20: 3.15
B21: соль | C21: 1 | D21: 16.00 | E21: 0.02
A22: Чай с сахаром с лимоном | B22: Чай | C22: 1 | D22: 688 | E22: 0.69
B23: лимон | C23: 8 | D23: 170 | E23: 1.36
B24: Сахар | C24: 15 | D24: 80 | E24: 1.20
A25: хлеб пшеничный | B25: хлеб | C25: 30 | D25: 78 | E25: =D25/1000*C25 -> 2.34
A26: хлеб рж пшен | B26: хлеб | C26: 20 | D26: 76 | E26: =D26/1000*C26 -> 1.52
B27: Итого | E27: =SUM(E15:E26) -> 37.25
A28: Среда
A29: Салат из св капусты | B29: капуста | C29: 60 | D29: 25 | E29: =C29*D29/1000 -> 1.5
B30: Морковь | C30: 8 | D30: 25.00 | E30: 0.2
B31: сахарный песок | C31: 3 | D31: 80.00 | E31: 0.24
B32: соль | C32: 1 | D32: 16.00 | E32: 0.016
B33: Масло растительное | C33: 7 | D33: 140.00 | E33: 0.98
A34: Котлеты рыбные | B34: котлеты рыбные | C34: 102 | D34: 325 | E34: 33.15
B35: Соль | C35: 2 | D35: 16 | E35: 0.032
B36: Масло растительное | C36: 2 | D36: 140 | E36: 0.28
A37: картофельное пюре | B37: картофель | C37: 170 | D37: 25 | E37: 4.25
B38: молоко | C38: 24 | D38: 83 | E38: 1.992
B39: Соль | C39: 1 | D39: 16 | E39: 0.016
B40: Масло слив | C40: 5 | D40: 900 | E40: 4.5
A41: Чай с сахаром | B41: Чай | C41: 1 | D41: 688 | E41: 0.688
B42: Сахар | C42: 15 | D42: 80 | E42: 1.2
A43: хлеб пшеничный | B43: хлеб | C43: 30 | D43: 78 | E43: =D43/1000*C43 -> 2.34
A44: хлеб рж пшен | B44: хлеб | C44: 20 | D44: 76 | E44: =D44/1000*C44 -> 1.52
B45: Итого | E45: =SUM(E29:E44) -> 52.9
A46: Четверг
A47: Салат из моркови | B47: морковь | C47: 65 | D47: 20 | E47: =C47*D47/1000 -> 1.30
B48: соль | C48: 0.5 | D48: 16 | E48: 0.01
B49: масло растительное | C49: 10 | D49: 140 | E49: 1.40
A50: Птица тушеная в соусе | B50: курица | C50: 100 | D50: 270 | E50: 27.00
B51: Масло растительное | C51: 2 | D51: 140 | E51: 0.28
B52: Мука пшеничная | C52: 4 | D52: 40 | E52: 0.16
B53: Соль | C53: 1 | D53: 16 | E53: 0.02
B54: сметана | C54: 13 | D54: 210 | E54: 2.63
A55: Макароны отварные | B55: Макаронные изд | C55: 53 | D55: 60 | E55: 3.18
B56: Масло сливочное | C56: 5 | D56: 900 | E56: 4.50
B57: Соль | C57: 1 | D57: 16 | E57: 0.02
A58: Кофейный напиток с молоком | B58: кофейный напиток | C58: 5 | D58: 500 | E58: 2.50
B59: Сахар | C59: 20 | D59: 80 | E59: 1.60
A60: хлеб пшеничный | B60: хлеб | C60: 30 | D60: 78 | E60: =D60/1000*C60 -> 2.34
A61: хлеб рж пшен | B61: хлеб | C61: 20 | D61: 76 | E61: =D61/1000*C61 -> 1.52
B62: Итого | E62: =SUM(E47:E61) -> 48.4
A63: Пятница
A64: Запеканка картофельная с мясом | B64: говядина котлетное мясо | C64: 63 | D64: 500 | E64: =C64*D64/1000 -> 31.50
B65: Масло растительное | C65: 5 | D65: 140 | E65: 0.70
B66: Картофель | C66: 230 | D66: 25 | E66: 5.75
B67: лук | C67: 15 | D67: 30 | E67: 0.45
B68: масло сливочное | C68: 11 | D68: 900 | E68: 9.90
B69: Соль | C69: 1 | D69: 16 | E69: 0.02
A70: Чай с лимоном | B70: заварка | C70: 1 | D70: 688 | E70: 0.69
B71: сахар | C71: 15 | D71: 80 | E71: 1.20
B72: лимон | C72: 8 | D72: 170 | E72: 1.36
A73: хлеб пшеничный | B73: хлеб | C73: 30 | D73: 78 | E73: =D73/1000*C73 -> 2.34
A74: хлеб рж пшен | B74: хлеб | C74: 20 | D74: 76 | E74: =D74/1000*C74 -> 1.52
A75: Масло слив. | B75: масло сливочное | C75: 10 | D75: 900 | E75: =C75*D75/1000 -> 9.00
A76: Сыр | B76: Сыр гол. | C76: 10 | D76: 610 | E76: =C76*D76/1000 -> 6.10
B77: Итого | E77: =SUM(E64:E76) -> 70.52
A78: Суббота
A79: Запеканка рисовая с творогом | B79: рис | C79: 24 | D79: 90 | E79: =C79*D79/1000 -> 2.16
B80: творог | C80: 20 | D80: 322 | E80: 6.44
B81: Яйцо | C81: 0.2 | D81: 10 | E81: 0.00
B82: Сахар | C82: 7.5 | D82: 80 | E82: 0.60
B83: Масло слив | C83: 10 | D83: 900 | E83: 9.00
B84: сметана | C84: 5 | D84: 210 | E84: 1.05
A85: Чай с сахаром | B85: заварка | C85: 1 | D85: 688.0 | E85: =C85*D85/1000 -> 0.69
B86: Сахар | C86: 15 | D86: 80.0 | E86: =C86*D86/1000 -> 1.20
A87: хлеб пшеничный | B87: хлеб | C87: 30 | D87: 78 | E87: =D87/1000*C87 -> 2.34
A88: хлеб рж пшен | B88: хлеб | C88: 20 | D88: 76 | E88: =D88/1000*C88 -> 1.52
B89: Итого | E89: =SUM(E79:E88) -> 25.00
A90: Всего за 2 недели | E90: ='1 неделя'!E23+'1 неделя'!E39+'1 неделя'!E54+'1 неделя'!E68+'1 неделя'!E83+'1 неделя'!E100+'2 неделя'!E13+'2 неделя'!E27+'2 неделя'!E45+'2 неделя'!E62+'2 неделя'!E77+'2 неделя'!E89 -> 671.11 | G90: при норме 50,3 руб в день, сумма 603,6 руб + 29,52 руб за счет собственной продукции (овощи) = 633,12 руб
